fUST/lending_fUST_20240902
["ID","MTS","AMOUNT","RATE_DAILY","PERIOD"]
[336844202,1725208243820,-10975.37,0.00024657,2]
[336844203,1725208243830,-617.75649372,0.00024657,2]
[336844204,1725208243839,-500.0,0.00024657,2]
[336844205,1725208243849,-502.07144363,0.00024657,2]
[336844206,1725208243859,-1792.6,0.00024657,2]
[336844207,1725208243868,-500.0,0.00024657,2]
[336844208,1725208243878,-500.0,0.00024657,2]
[336844209,1725208243888,-500.0,0.00024657,2]
[336844210,1725208243898,-500.0,0.00024657,2]
[336844211,1725208243907,-500.0,0.00024657,2]
[336844212,1725208243917,-946.47,0.00024657,2]
[336844213,1725208243927,-500.0,0.00024657,2]
[336844214,1725208243936,-1981.9,0.00024657,2]
[336844215,1725208243946,-6277.5,0.00024657,2]
[336844216,1725208243957,-500.0,0.00024657,2]
[336844217,1725208243967,-500.0,0.00024657,2]
[336844218,1725208243978,-500.0,0.00024657,2]
[336844219,1725208243987,-500.0,0.00024657,2]
[336844220,1725208243996,-500.0,0.00024657,2]
[336844221,1725208244006,-500.0,0.00024657,2]
[336844222,1725208244015,-500.0,0.00024657,2]
[336844223,1725208244025,-1072.14,0.00024657,2]
[336844224,1725208244035,-500.0,0.00024657,2]
[336844225,1725208244045,-500.0,0.00024657,2]
[336844226,1725208244054,-500.0,0.00024657,2]
[336844227,1725208244063,-1165.54,0.00024657,2]
[336844228,1725208244073,-500.0,0.00024657,2]
[336844229,1725208244083,-500.0,0.00024657,2]
[336844230,1725208244092,-500.0,0.00024657,2]
[336844231,1725208244101,-500.0,0.00024657,2]
[336844232,1725208244110,-1958.66,0.00024657,2]
[336844233,1725208244119,-1875.57,0.00024657,2]
[336844234,1725208244128,-500.0,0.00024657,2]
[336844235,1725208244137,-500.0,0.00024657,2]
[336844236,1725208244147,-500.0,0.00024657,2]
[336844237,1725208244156,-500.0,0.00024657,2]
[336844238,1725208244165,-500.0,0.00024657,2]
[336844239,1725208244177,-500.0,0.00024657,2]
[336844240,1725208244186,-245.25807954,0.00024657,2]
[336844241,1725208244195,-542.83832161,0.00024657,2]
[336844242,1725208244204,-1682.57,0.00024657,2]
[336844243,1725208244217,-2403.09,0.00024657,2]
[336844244,1725208244227,-3945.26,0.00024657,2]
[336844245,1725208244236,-500.0,0.00024657,2]
[336844246,1725208244245,-500.0,0.00024657,2]
[336844247,1725208244258,-265.25486729,0.00024657,2]
[336844248,1725208244267,-1012.45,0.00024657,2]
[336844249,1725208244276,-500.0,0.00024657,2]
[336844250,1725208244285,-551.14,0.00024657,2]
[336844251,1725208244296,-500.0,0.00024657,2]
[336844252,1725208244306,-1718.13,0.00024657,2]
[336844253,1725208244315,-500.0,0.00024657,2]
[336844254,1725208244324,-2588.13,0.00024657,2]
[336844255,1725208244449,-500.0,0.00024657,2]
[336844256,1725208244461,-500.0,0.00024657,2]
[336844257,1725208244470,-500.0,0.00024657,2]
[336844258,1725208244479,-2260.02,0.00024657,2]
[336844259,1725208244489,-500.0,0.00024657,2]
[336844260,1725208244498,-500.0,0.00024657,2]
[336844261,1725208244508,-500.0,0.00024657,2]
[336844262,1725208244517,-500.0,0.00024657,2]
[336844263,1725208244527,-190.34396407,0.00024658,2]
[336844264,1725208244536,-380.0,0.00024658,2]
[336844265,1725208244546,-500.0,0.00024673,2]
[336844266,1725208244555,-350.26928938,0.00024673,2]
[336844267,1725208244564,-500.0,0.00024673,2]
[336844268,1725208244573,-500.0,0.00024673,2]
[336844269,1725208244583,-150.112233,0.000247,5]
[336844270,1725208244593,-150.112233,0.000247,2]
[336844271,1725208244602,-150.112233,0.000248,3]
[336844272,1725208244611,-150.112233,0.000248,5]
[336844273,1725208244621,-150.112233,0.000248,5]
[336844274,1725208244630,-3499.53799639,0.0002489,3]
[336844275,1725208244640,-150.112233,0.000249,4]
[336844276,1725208244649,-150.112233,0.000249,5]
[336844277,1725208244658,-150.112233,0.000249,3]
[336844278,1725208244667,-150.112233,0.000249,4]
[336844279,1725208244676,-271.976307,0.000249,3]
[336844280,1725208244686,-44884.77903622,0.000249,2]
[336844281,1725208244695,-20997.2279783,0.00024921,3]
[336844282,1725208244704,-500.0,0.0002493,2]
[336844283,1725208244714,-500.0,0.0002493,2]
[336844284,1725208244723,-500.0,0.0002493,2]
[336844285,1725208244733,-500.0,0.00024931,2]
[336844286,1725208244742,-500.0,0.00024931,2]
[336844287,1725208244752,-500.0,0.00024931,2]
[336844288,1725208244763,-500.0,0.00024931,2]
[336844289,1725208244773,-500.0,0.00024931,2]
[336844290,1725208244783,-500.0,0.00024931,2]
[336844291,1725208244792,-500.0,0.00024931,2]
[336844292,1725208244801,-500.0,0.00024931,2]
[336844293,1725208244810,-500.0,0.00024931,2]
[336844294,1725208244819,-500.0,0.00024931,2]
[336844295,1725208244828,-712.28,0.00024931,2]
[336844296,1725208244837,-500.0,0.00024931,2]
[336844297,1725208244846,-430.54722159,0.00024931,2]
[336844298,1725208244856,-607.48725507,0.00024931,2]
[336844299,1725208244865,-500.0,0.00024931,2]
[336844300,1725208244874,-500.0,0.00024931,2]
[336844301,1725208244883,-385.28181826,0.00024931,2]
[336844303,1725208244893,-559.1743365,0.00024931,2]
[336844304,1725208244902,-500.0,0.00024931,2]
[336844305,1725208244911,-580.39382741,0.00024931,2]
[336844306,1725208244921,-500.0,0.00024931,2]
[336844307,1725208244930,-500.0,0.00024931,2]
[336844308,1725208244939,-500.0,0.00024931,2]
[336844309,1725208244949,-500.0,0.00024931,2]
[336844310,1725208244958,-500.0,0.00024931,2]
[336844311,1725208244967,-500.0,0.00024931,2]
[336844312,1725208244977,-500.0,0.00024931,2]
[336844313,1725208244986,-500.0,0.00024931,2]
[336844314,1725208244995,-162.50728671,0.00024931,2]
[336844315,1725208245005,-500.0,0.00024931,2]
[336844316,1725208245014,-500.0,0.00024931,2]
[336844317,1725208245024,-500.0,0.00024931,2]
[336844318,1725208245033,-500.0,0.00024931,2]
[336844319,1725208245042,-500.0,0.00024931,2]
[336844320,1725208245051,-500.0,0.00024931,2]
[336844321,1725208245060,-500.0,0.00024931,2]
[336844322,1725208245070,-500.0,0.00024931,2]
[336844323,1725208245080,-485.19704956,0.00024931,2]
[336844324,1725208245089,-500.0,0.00024931,2]
[336844325,1725208245098,-500.0,0.00024931,2]
[336844326,1725208245107,-487.35780852,0.00024931,2]
[336844327,1725208245117,-500.0,0.00024931,2]
[336844328,1725208245126,-500.0,0.00024931,2]
[336844329,1725208245135,-500.0,0.00024931,2]
[336844330,1725208245144,-556.9,0.00024931,2]
[336844331,1725208245154,-500.0,0.00024931,2]
[336844332,1725208245163,-500.0,0.00024931,2]
[336844333,1725208245173,-686.08,0.00024931,2]
[336844334,1725208245182,-960.34,0.00024931,2]
[336844335,1725208245191,-500.0,0.00024931,2]
[336844336,1725208245200,-500.0,0.00024931,2]
[336844337,1725208245212,-500.0,0.00024931,2]
[336844338,1725208245223,-885.28,0.00024931,2]
[336844339,1725208245233,-500.0,0.00024931,2]
[336844340,1725208245243,-500.0,0.00024931,2]
[336844341,1725208245253,-500.0,0.00024931,2]
[336844342,1725208245262,-637.01,0.00024931,2]
[336844343,1725208245272,-405.66399711,0.00024931,2]
[336844344,1725208245281,-500.0,0.00024931,2]
[336844345,1725208245292,-769.93,0.00024931,2]
[336844347,1725208245301,-500.0,0.00024931,2]
[336844349,1725208245310,-500.0,0.00024931,2]
[336844350,1725208245319,-500.0,0.00024931,2]
[336844351,1725208245328,-500.0,0.00024931,2]
[336844352,1725208245338,-500.0,0.00024931,2]
[336844353,1725208245347,-504.98489087,0.00024931,2]
[336844354,1725208245357,-500.0,0.00024931,2]
[336844355,1725208245366,-500.0,0.00024931,2]
[336844356,1725208245376,-500.0,0.00024931,2]
[336844357,1725208245384,-500.0,0.00024931,2]
[336844358,1725208245394,-1586.72,0.00024931,2]
[336844359,1725208245403,-500.0,0.00024931,2]
[336844360,1725208245413,-200.0,0.00024931,2]
[336844361,1725208245423,-788.47,0.00024931,2]
[336844362,1725208245433,-500.0,0.00024931,2]
[336844363,1725208245442,-500.0,0.00024931,2]
[336844364,1725208245451,-500.0,0.00024931,2]
[336844365,1725208245461,-176.90945779,0.00024931,2]
[336844366,1725208245470,-416.61689695,0.00024931,2]
[336844367,1725208245479,-960.8,0.00024931,2]
[336844369,1725208245488,-500.0,0.00024931,2]
[336844370,1725208245497,-500.0,0.00024931,2]
[336844372,1725208245507,-1399.19,0.00024931,2]
[336844374,1725208245516,-1032.24,0.00024931,2]
[336844376,1725208245525,-500.0,0.00024931,2]
[336844378,1725208245541,-500.0,0.00024931,2]
[336844379,1725208245557,-857.85,0.00024931,2]
[336844380,1725208245571,-500.0,0.00024931,2]
[336844381,1725208245583,-500.0,0.00024931,2]
[336844383,1725208245598,-315.93576019,0.00024931,2]
[336844385,1725208245612,-500.0,0.00024931,2]
[336844386,1725208245627,-621.67,0.00024931,2]
[336844387,1725208245642,-500.0,0.00024931,2]
[336844388,1725208245659,-500.0,0.00024931,2]
[336844389,1725208245672,-500.0,0.00024931,2]
[336844391,1725208245685,-500.0,0.00024931,2]
[336844392,1725208245698,-511.88836415,0.00024931,2]
[336844393,1725208245713,-500.0,0.00024931,2]
[336844394,1725208245728,-500.0,0.00024931,2]
[336844395,1725208245741,-500.0,0.00024931,2]
[336844396,1725208245754,-500.0,0.00024931,2]
[336844397,1725208245767,-500.0,0.00024931,2]
[336844398,1725208245780,-500.0,0.00024931,2]
[336844399,1725208245793,-1035.37,0.00024931,2]
[336844400,1725208245807,-500.0,0.00024931,2]
[336844401,1725208245822,-464.68238539,0.00024931,2]
[336844402,1725208245837,-500.0,0.00024931,2]
[336844403,1725208245848,-500.0,0.00024931,2]
[336844404,1725208245859,-500.0,0.00024931,2]
[336844405,1725208245870,-500.0,0.00024931,2]
[336844406,1725208245884,-500.0,0.00024931,2]
[336844407,1725208245899,-500.0,0.00024931,2]
[336844408,1725208245911,-500.0,0.00024931,2]
[336844409,1725208245924,-4850.08,0.00024931,2]
[336844410,1725208245938,-500.0,0.00024931,2]
[336844411,1725208245952,-500.0,0.00024931,2]
[336844412,1725208245963,-500.0,0.00024931,2]
[336844413,1725208245975,-500.0,0.00024931,2]
[336844414,1725208245987,-500.0,0.00024931,2]
[336844415,1725208245999,-500.0,0.00024931,2]
[336844416,1725208246011,-500.0,0.00024931,2]
[336844417,1725208246023,-1466.23,0.00024931,2]
[336844418,1725208246035,-313.38460656,0.00024931,2]
[336844419,1725208246048,-373.26231156,0.00024931,2]
[336844420,1725208246061,-500.0,0.00024931,2]
[336844421,1725208246072,-538.01,0.00024931,2]
[336844422,1725208246083,-415.64394168,0.00024931,2]
[336844423,1725208246095,-500.0,0.00024931,2]
[336844424,1725208246107,-774.17,0.00024931,2]
[336844425,1725208246120,-843.25,0.00024931,2]
[336844426,1725208246133,-743.54,0.00024931,2]
[336844427,1725208246153,-569.36,0.00024931,2]
[336844428,1725208246164,-500.0,0.00024931,2]
[336844429,1725208246178,-860.06,0.00024931,2]
[336844430,1725208246189,-500.0,0.00024931,2]
[336844431,1725208246201,-500.0,0.00024931,2]
[336844432,1725208246216,-500.0,0.00024931,2]
[336844433,1725208246228,-500.0,0.00024931,2]
[336844434,1725208246239,-644.82726291,0.00024931,2]
[336844435,1725208246251,-675.09,0.00024931,2]
[336844436,1725208246266,-506.4085577,0.00024931,2]
[336844437,1725208246278,-500.0,0.00024931,2]
[336844438,1725208246291,-500.0,0.00024931,2]
[336844439,1725208246303,-500.0,0.00024931,2]
[336844440,1725208246315,-514.88839739,0.00024931,2]
[336844441,1725208246327,-500.0,0.00024931,2]
[336844442,1725208246339,-659.95,0.00024931,2]
[336844443,1725208246351,-713.87,0.00024931,2]
[336844444,1725208246363,-189.00608033,0.00024931,2]
[336844445,1725208246374,-706.75,0.00024931,2]
[336844446,1725208246386,-623.32,0.00024931,2]
[336844447,1725208246398,-500.0,0.00024931,2]
[336844448,1725208246410,-509.10237185,0.00024931,2]
[336844449,1725208246422,-601.5,0.00024931,2]
[336844450,1725208246434,-500.0,0.00024931,2]
[336844451,1725208246445,-500.0,0.00024931,2]
[336844452,1725208246456,-500.0,0.00024931,2]
[336844453,1725208246468,-1506.67,0.00024931,2]
[336844454,1725208246481,-995.04,0.00024931,2]
[336844455,1725208246493,-475.03827179,0.00024931,2]
[336844456,1725208246506,-577.91,0.00024931,2]
[336844457,1725208246518,-500.0,0.00024931,2]
[336844458,1725208246530,-500.0,0.00024931,2]
[336844459,1725208246542,-500.0,0.00024931,2]
[336844460,1725208246553,-569.44,0.00024931,2]
[336844461,1725208246565,-1264.63,0.00024931,2]
[336844462,1725208246577,-500.0,0.00024931,2]
[336844463,1725208246588,-500.0,0.00024931,2]
[336844464,1725208246599,-2037.44,0.00024931,2]
[336844465,1725208246610,-500.0,0.00024931,2]
[336844466,1725208246622,-500.0,0.00024931,2]
[336844467,1725208246634,-500.0,0.00024931,2]
[336844468,1725208246646,-1592.91,0.00024931,2]
[336844469,1725208246658,-399.9,0.00024931,2]
[336844470,1725208246670,-500.0,0.00024931,2]
[336844471,1725208246682,-2244.05,0.00024931,2]
[336844472,1725208246694,-500.0,0.00024931,2]
[336844473,1725208246707,-530.88,0.00024931,2]
[336844474,1725208246718,-500.0,0.00024931,2]
[336844475,1725208246731,-500.0,0.00024931,2]
[336844476,1725208246743,-500.0,0.00024931,2]
[336844477,1725208246755,-500.0,0.00024931,2]
[336844478,1725208246765,-1945.41,0.00024931,2]
[336844479,1725208246775,-500.0,0.00024931,2]
[336844480,1725208246785,-500.0,0.00024931,2]
[336844481,1725208246794,-517.37,0.00024931,2]
[336844482,1725208246803,-1559.63,0.00024931,2]
[336844483,1725208246813,-500.0,0.00024931,2]
[336844484,1725208246822,-575.9,0.00024931,2]
[336844485,1725208246830,-500.0,0.00024931,2]
[336844486,1725208246839,-500.0,0.00024931,2]
[336844487,1725208246849,-500.0,0.00024931,2]
[336844488,1725208246858,-1643.64,0.00024931,2]
[336844489,1725208246867,-540.89,0.00024931,2]
[336844490,1725208246876,-616.42,0.00024931,2]
[336844491,1725208246886,-1049.07,0.00024931,2]
[336844492,1725208246895,-500.0,0.00024931,2]
[336844493,1725208246904,-500.0,0.00024931,2]
[336844494,1725208246913,-500.0,0.00024931,2]
[336844495,1725208246922,-500.0,0.00024931,2]
[336844496,1725208247128,-737.46,0.00024931,2]
[336844497,1725208247144,-602.39,0.00024931,2]
[336844498,1725208247160,-828.6,0.00024931,2]
[336844499,1725208247169,-500.0,0.00024931,2]
[336844500,1725208247178,-2551.78,0.00024931,2]
[336844501,1725208247188,-2511.39,0.00024931,2]
[336844502,1725208247197,-1094.09,0.00024931,2]
[336844503,1725208247207,-500.0,0.00024931,2]
[336844504,1725208247220,-500.0,0.00024931,2]
[336844505,1725208247230,-1578.15,0.00024931,2]
[336844506,1725208247239,-691.19,0.00024931,2]
[336844507,1725208247248,-500.0,0.00024931,2]
[336844508,1725208247259,-1436.31,0.00024931,2]
[336844509,1725208247269,-500.0,0.00024931,2]
[336844510,1725208247278,-500.0,0.00024931,2]
[336844511,1725208247287,-500.0,0.00024931,2]
[336844512,1725208247298,-575.21,0.00024931,2]
[336844513,1725208247307,-500.0,0.00024931,2]
[336844514,1725208247317,-914.04,0.00024931,2]
[336844515,1725208247326,-2953.98,0.00024931,2]
[336844516,1725208247335,-974.0,0.00024931,2]
[336844517,1725208247344,-594.96,0.00024931,2]
[336844518,1725208247354,-3804.53,0.00024931,2]
[336844519,1725208247363,-2241.31,0.00024931,2]
[336844520,1725208247373,-500.0,0.00024931,2]
[336844521,1725208247382,-500.0,0.00024931,2]
[336844522,1725208247391,-500.0,0.00024931,2]
[336844523,1725208247401,-2345.81,0.00024931,2]
[336844524,1725208247411,-500.0,0.00024931,2]
[336844525,1725208247421,-548.33591432,0.00024931,2]
[336844526,1725208247430,-571.88,0.00024931,2]
[336844527,1725208247439,-2004.37,0.00024931,2]
[336844528,1725208247448,-500.0,0.00024931,2]
[336844529,1725208247457,-500.0,0.00024931,2]
[336844530,1725208247467,-500.0,0.00024931,2]
[336844531,1725208247476,-500.0,0.00024931,2]
[336844532,1725208247486,-1141.93,0.00024931,2]
[336844533,1725208247495,-2959.82,0.00024931,2]
[336844534,1725208247504,-500.0,0.00024931,2]
[336844535,1725208247515,-966.68,0.00024931,2]
[336844536,1725208247533,-564.06,0.00024931,2]
[336844537,1725208247543,-500.0,0.00024931,2]
[336844538,1725208247552,-500.0,0.00024931,2]
[336844539,1725208247561,-500.0,0.00024931,2]
[336844540,1725208247570,-872.85,0.00024931,2]
[336844541,1725208247580,-500.0,0.00024931,2]
[336844542,1725208247589,-500.0,0.00024931,2]
[336844543,1725208247598,-500.0,0.00024931,2]
[336844544,1725208247607,-500.0,0.00024931,2]
[336844545,1725208247616,-1601.33,0.00024931,2]
[336844546,1725208247626,-500.0,0.00024931,2]
[336844547,1725208247636,-13163.07,0.00024931,2]
[336844548,1725208247647,-1025.23,0.00024931,2]
[336844549,1725208247657,-500.0,0.00024931,2]
[336844550,1725208247667,-500.0,0.00024931,2]
[336844551,1725208247676,-749.01,0.00024931,2]
[336844552,1725208247685,-710.82,0.00024931,2]
[336844553,1725208247694,-1845.99138826,0.00024931,2]
[336844554,1725208247936,-235.59861174,0.00024931,2]
[336844555,1725208247946,-500.0,0.00024931,2]
[336844556,1725208247956,-500.0,0.00024931,2]
[336844557,1725208247965,-123.51832783,0.00024931,2]
[336844558,1725208248511,-500.0,0.00024657,2]
[336844559,1725208248521,-500.0,0.00024657,2]
[336844560,1725208248531,-433.88029362,0.00024931,2]
[336844561,1725208248541,-615.53,0.00024931,2]
[336844562,1725208248551,-500.0,0.00024931,2]
[336844563,1725208248561,-500.0,0.00024931,2]
[336844564,1725208248572,-2401.35,0.00024931,2]
[336844565,1725208248582,-1258.62,0.00024931,2]
[336844566,1725208248592,-1838.57,0.00024931,2]
[336844567,1725208248604,-2055.11,0.00024931,2]
[336844568,1725208248614,-799.77,0.00024931,2]
[336844569,1725208248625,-593.47,0.00024931,2]
[336844570,1725208248635,-567.35,0.00024931,2]
[336844571,1725208248645,-500.0,0.00024931,2]
[336844572,1725208248655,-2456.34,0.00024931,2]
[336844573,1725208248664,-500.0,0.00024931,2]
[336844574,1725208248674,-958.67,0.00024931,2]
[336844575,1725208248684,-500.0,0.00024931,2]
[336844576,1725208248695,-500.0,0.00024931,2]
[336844577,1725208248704,-2075.01,0.00024931,2]
[336844578,1725208248714,-3595.62,0.00024931,2]
[336844579,1725208248723,-709.52,0.00024931,2]
[336844580,1725208248732,-500.0,0.00024931,2]
[336844581,1725208248741,-861.67,0.00024931,2]
[336844582,1725208248750,-2415.18,0.00024931,2]
[336844583,1725208248759,-2156.16,0.00024931,2]
[336844584,1725208248770,-500.0,0.00024931,2]
[336844585,1725208248779,-500.0,0.00024931,2]
[336844586,1725208248788,-518.21,0.00024931,2]
[336844587,1725208248797,-3419.92,0.00024931,2]
[336844588,1725208248806,-500.0,0.00024931,2]
[336844589,1725208248816,-2185.39,0.00024931,2]
[336844590,1725208248825,-1533.19,0.00024931,2]
[336844591,1725208248835,-500.0,0.00024931,2]
[336844592,1725208248844,-1972.95,0.00024931,2]
[336844593,1725208248853,-500.0,0.00024931,2]
[336844594,1725208248862,-500.0,0.00024931,2]
[336844595,1725208248871,-872.7,0.00024931,2]
[336844596,1725208248880,-1241.3,0.00024931,2]
[336844597,1725208248890,-783.46,0.00024931,2]
[336844598,1725208248900,-689.45,0.00024931,2]
[336844599,1725208248909,-1630.85,0.00024931,2]
[336844600,1725208248919,-1003.31,0.00024931,2]
[336844601,1725208248928,-10975.37,0.00024931,2]
[336844602,1725208248940,-500.0,0.00024931,2]
[336844603,1725208248949,-1792.6,0.00024931,2]
[336844604,1725208248958,-500.0,0.00024931,2]
[336844605,1725208248968,-946.47,0.00024931,2]
[336844606,1725208248979,-1981.9,0.00024931,2]
[336844607,1725208248990,-6277.5,0.00024931,2]
[336844608,1725208249000,-500.0,0.00024931,2]
[336844609,1725208249010,-500.0,0.00024931,2]
[336844610,1725208249019,-551.99576952,0.00024931,2]
[336844611,1725208249029,-500.0,0.00024931,2]
[336844612,1725208249038,-500.0,0.00024931,2]
[336844613,1725208249048,-500.0,0.00024931,2]
[336844614,1725208249058,-1072.14,0.00024931,2]
[336844615,1725208249067,-500.0,0.00024931,2]
[336844616,1725208249076,-1165.54,0.00024931,2]
[336844617,1725208249086,-500.0,0.00024931,2]
[336844618,1725208249095,-500.0,0.00024931,2]
[336844619,1725208249105,-500.0,0.00024931,2]
[336844620,1725208249114,-1958.66,0.00024931,2]
[336844621,1725208249123,-1875.57,0.00024931,2]
[336844622,1725208249133,-500.0,0.00024931,2]
[336844623,1725208249143,-500.0,0.00024931,2]
[336844624,1725208249158,-500.0,0.00024931,2]
[336844625,1725208249168,-1682.57,0.00024931,2]
[336844626,1725208249178,-2403.09,0.00024931,2]
[336844627,1725208249188,-3945.26,0.00024931,2]
[336844628,1725208249197,-500.0,0.00024931,2]
[336844629,1725208249207,-500.0,0.00024931,2]
[336844630,1725208249220,-1012.45,0.00024931,2]
[336844631,1725208249230,-500.0,0.00024931,2]
[336844632,1725208249241,-551.14,0.00024931,2]
[336844633,1725208249251,-500.0,0.00024931,2]
[336844634,1725208249262,-1718.13,0.00024931,2]
[336844635,1725208249272,-500.0,0.00024931,2]
[336844636,1725208249282,-2588.13,0.00024931,2]
[336844637,1725208249294,-285.27498504,0.00024931,2]
[336844638,1725208249304,-500.0,0.00024931,2]
[336844639,1725208249314,-2260.02,0.00024931,2]
[336844640,1725208249324,-500.0,0.00024931,2]
[336844641,1725208249333,-500.0,0.00024931,2]
[336844642,1725208249342,-500.0,0.00024931,2]
[336844643,1725208249352,-500.0,0.00024931,2]
[336844644,1725208249361,-500.0,0.00024973,2]
[336844645,1725208249371,-500.0,0.00024973,2]
[336844646,1725208249381,-150.112233,0.00025,2]
[336844647,1725208249391,-150.112233,0.00025,7]
[336844648,1725208249401,-150.112233,0.00025,4]
[336844649,1725208249411,-150.112233,0.00025,9]
[336844650,1725208249423,-150.112233,0.00025,3]
[336844651,1725208249432,-154.0,0.00025,2]
[336844652,1725208249442,-1030.65738201,0.00025,2]
[336844653,1725208249452,-7388.4204048,0.00025,2]
[336844654,1725208249465,-25130.38802756,0.00025,2]
[336844655,1725208249485,-2444.52392989,0.00025,2]
[336844663,1725208430607,-3000.0,0.00023675,2]
[336844664,1725208430631,-716.692689,0.00023836,2]
[336844665,1725208430665,-1648.86764062,0.00024557,2]
[336844666,1725208430688,-2966.40014832,0.00024557,2]
[336844667,1725208430712,-874.8844991,0.00024647,3]
[336844668,1725208430734,-300.0,0.00024656,2]
[336844669,1725208430756,-500.0,0.00024657,2]
[336844670,1725208430779,-500.0,0.00024657,2]
[336844671,1725208430801,-500.0,0.00024657,2]
[336844672,1725208430824,-169.79,0.00024657,2]
[336844673,1725208430847,-500.0,0.00024657,2]
[336844674,1725208430870,-500.0,0.00024657,2]
[336844675,1725208430896,-500.0,0.00024657,2]
[336844676,1725208430920,-500.0,0.00024657,2]
[336844677,1725208430943,-500.0,0.00024657,2]
[336844678,1725208430966,-500.0,0.00024657,2]
[336844679,1725208430988,-2302.11,0.00024657,2]
[336844680,1725208431011,-545.38,0.00024657,2]
[336844681,1725208431034,-500.0,0.00024657,2]
[336844682,1725208431055,-500.0,0.00024657,2]
[336844683,1725208431077,-993.8,0.00024657,2]
[336844684,1725208431100,-2339.13,0.00024657,2]
[336844685,1725208431123,-2150.32,0.00024657,2]
[336844686,1725208431149,-348.78386207,0.00024657,2]
[336844687,1725208431171,-500.0,0.00024657,2]
[336844688,1725208431193,-500.0,0.00024657,2]
[336844689,1725208431214,-824.95,0.00024657,2]
[336844690,1725208431236,-500.0,0.00024657,2]
[336844691,1725208431258,-500.0,0.00024657,2]
[336844692,1725208431283,-1837.34,0.00024657,2]
[336844693,1725208431307,-500.0,0.00024657,2]
[336844694,1725208431329,-500.0,0.00024657,2]
[336844695,1725208431350,-569.86,0.00024657,2]
[336844696,1725208431373,-500.0,0.00024657,2]
[336844697,1725208431398,-2707.82,0.00024657,2]
[336844698,1725208431419,-500.0,0.00024657,2]
[336844699,1725208431442,-2694.87,0.00024657,2]
[336844700,1725208431463,-500.0,0.00024657,2]
[336844701,1725208431485,-921.5,0.00024657,2]
[336844702,1725208431506,-500.0,0.00024657,2]
[336844703,1725208431528,-500.0,0.00024657,2]
[336844704,1725208431549,-500.0,0.00024657,2]
[336844705,1725208431570,-500.0,0.00024657,2]
[336844706,1725208431592,-500.0,0.00024657,2]
[336844707,1725208431614,-478.15681711,0.00024657,2]
[336844708,1725208431640,-12817.37,0.00024657,2]
[336844709,1725208431661,-500.0,0.00024657,2]
[336844710,1725208431683,-500.0,0.00024657,2]
[336844711,1725208431706,-500.0,0.00024657,2]
[336844712,1725208431727,-500.0,0.00024657,2]
[336844713,1725208431749,-500.0,0.00024657,2]
[336844714,1725208431770,-500.0,0.00024657,2]
[336844715,1725208431792,-500.0,0.00024657,2]
[336844716,1725208431814,-1985.04,0.00024657,2]
[336844717,1725208431838,-2836.5,0.00024657,2]
[336844718,1725208431861,-500.0,0.00024657,2]
[336844719,1725208431885,-500.0,0.00024657,2]